fUST/lending_fUST_20260110
["ID","MTS","AMOUNT","RATE_DAILY","PERIOD"]
[401145544,1767975043503,-1500.0,0.00014795,2]
[401145546,1767975043513,-369.78061474,0.00014795,2]
[401145548,1767975043523,-1500.0,0.00014795,2]
[401145549,1767975043532,-947.49421984,0.00014795,2]
[401145551,1767975043541,-151.0,0.000148,2]
[401145553,1767975043551,-100000.0,0.00014882,2]
[401145556,1767975043561,-2540.0800825,0.00014891,2]
[401145557,1767975043571,-1500.25,0.00014916,2]
[401145560,1767975043581,-545.78,0.00014916,2]
[401145562,1767975043590,-836.19,0.00014916,2]
[401145564,1767975043600,-2000.0,0.00014916,2]
[401145566,1767975043609,-2000.0,0.00014916,2]
[401145568,1767975043618,-500.0,0.00014916,2]
[401145569,1767975043628,-1491.15638518,0.00014916,2]
[401145572,1767975043638,-2000.0,0.00014916,2]
[401145574,1767975043648,-1500.0,0.00014916,2]
[401145576,1767975043657,-1506.91111939,0.00014916,2]
[401145578,1767975043667,-1502.20988126,0.00014916,2]
[401145580,1767975043677,-2000.0,0.00014916,2]
[401145582,1767975043686,-2000.0,0.00014916,2]
[401145584,1767975043696,-800.0,0.00015068,2]
[401145586,1767975043706,-2540.0800825,0.00015282,2]
[401145588,1767975043716,-1200.0,0.00015316,2]
[401145590,1767975043725,-1500.25,0.00015342,2]
[401145592,1767975043735,-545.78,0.00015342,2]
[401145594,1767975043745,-836.19,0.00015342,2]
[401145596,1767975043755,-1489.76585726,0.00015342,2]
[401145598,1767975043764,-2000.0,0.00015342,2]
[401145600,1767975043774,-2000.0,0.00015342,2]
[401145602,1767975043783,-2000.0,0.00015342,2]
[401145603,1767975043792,-2540.0800825,0.00015416,2]
[401145605,1767975043802,-679.056312,0.00015464,2]
[401145607,1767975043811,-679.056312,0.00015464,2]
[401145609,1767975043821,-679.056312,0.00015464,2]
[401145612,1767975043831,-679.056312,0.00015464,2]
[401145614,1767975043841,-258.22378813,0.00015464,2]
[401145616,1767975043850,-2500.0,0.00015464,2]
[401145618,1767975043860,-2500.0,0.00015464,2]
[401145619,1767975043870,-2500.0,0.00015464,2]
[401145621,1767975043880,-2500.0,0.00015464,2]
[401145623,1767975043889,-500.0,0.0001559,2]
[401145625,1767975043899,-500.0,0.0001559,2]
[401145627,1767975043908,-500.0,0.0001559,2]
[401145629,1767975043918,-500.0,0.0001559,2]
[401145631,1767975043927,-259.14783661,0.0001559,2]
[401145633,1767975043937,-7465.0,0.0001559,2]
[401145636,1767975043947,-151.0,0.000156,2]
[401145637,1767975043956,-2540.0800825,0.0001562,2]
[401145639,1767975043966,-564.05569209,0.00015727,2]
[401145641,1767975043975,-629.09707327,0.00015727,2]
[401145644,1767975043985,-500.0,0.00015727,2]
[401145645,1767975043994,-229.25171681,0.00015727,2]
[401145648,1767975044005,-160.56827625,0.00015727,2]
[401145650,1767975044014,-288.89220541,0.00015727,2]
[401145651,1767975044023,-633.41958824,0.00015727,2]
[401145654,1767975044033,-7465.0,0.00015727,2]
[401145655,1767975044043,-864.0,0.00015786,2]
[401145657,1767975044052,-4877.05303816,0.00015851,2]
[401145659,1767975044062,-200.0,0.00015864,2]
[401145661,1767975044073,-500.0,0.00015864,2]
[401145663,1767975044082,-151.12568822,0.00015864,2]
[401145666,1767975044093,-7465.0,0.00015864,2]
[401145667,1767975044104,-1200.0,0.00015864,2]
[401145670,1767975044114,-2500.0,0.0001589,2]
[401145671,1767975044124,-1500.0,0.0001589,2]
[401145674,1767975044138,-2416.19013549,0.0001589,2]
[401145675,1767975044148,-1500.25,0.00015936,2]
[401145678,1767975044158,-545.78,0.00015936,2]
[401145679,1767975044167,-836.19,0.00015936,2]
[401145682,1767975044177,-1000.0,0.00016,2]
[401145684,1767975044187,-150.61037759,0.00016001,2]
[401145686,1767975044196,-500.0,0.00016001,2]
[401145688,1767975044207,-7465.0,0.00016001,2]
[401145689,1767975044217,-1000.0,0.00016012,2]
[401145690,1767975044227,-2916.14528931,0.00016012,2]
[401145691,1767975044239,-2223.47237517,0.00016012,2]
[401145692,1767975044248,-3000.0,0.00016012,2]
[401145693,1767975044258,-2540.0800825,0.00016025,2]
[401145694,1767975044268,-281.92667681,0.00016138,2]
[401145695,1767975044278,-274.74001223,0.00016138,2]
[401145697,1767975044288,-150.48599137,0.00016138,2]
[401145699,1767975044297,-161.30460818,0.00016138,2]
[401145701,1767975044307,-7465.0,0.00016138,2]
[401145702,1767975044317,-392.00960804,0.00016195,2]
[401145704,1767975044327,-2540.0800825,0.0001624,2]
[401145705,1767975044336,-175.58637142,0.00016275,2]
[401145706,1767975044347,-151.38401694,0.00016275,2]
[401145707,1767975044356,-7465.0,0.00016275,2]
[401145708,1767975044366,-151.0,0.000163,2]
[401145709,1767975044375,-200.0,0.00016357,2]
[401145710,1767975044386,-1500.25,0.00016358,2]
[401145711,1767975044395,-1500.25,0.00016358,2]
[401145712,1767975044404,-1500.25,0.00016358,2]
[401145713,1767975044414,-1500.25,0.00016358,2]
[401145714,1767975044457,-1500.25,0.00016358,2]
[401145715,1767975044467,-1500.42078603,0.00016358,2]
[401145716,1767975044477,-545.78,0.00016358,2]
[401145717,1767975044488,-545.78,0.00016358,2]
[401145718,1767975044497,-545.78,0.00016358,2]
[401145719,1767975044507,-545.78,0.00016358,2]
[401145720,1767975044516,-545.78,0.00016358,2]
[401145721,1767975044526,-545.89576135,0.00016358,2]
[401145722,1767975044536,-836.19,0.00016358,2]
[401145723,1767975044545,-836.19,0.00016358,2]
[401145724,1767975044555,-836.19,0.00016358,2]
[401145725,1767975044564,-836.19,0.00016358,2]
[401145726,1767975044573,-836.19,0.00016358,2]
[401145727,1767975044583,-836.23694579,0.00016358,2]
[401145728,1767975044591,-7465.0,0.00016412,2]
[401145729,1767975044600,-500.0,0.00016412,2]
[401145730,1767975044610,-153.0232152,0.00016412,2]
[401145731,1767975044620,-151.0,0.00016438,2]
[401145732,1767975044629,-151.0,0.00016438,2]
[401145733,1767975044639,-151.0,0.00016438,2]
[401145734,1767975044648,-151.0,0.00016438,2]
[401145735,1767975044657,-3000.0,0.00016438,2]
[401145736,1767975044666,-183.89,0.0001644,2]
[401145737,1767975044675,-183.89,0.0001644,2]
[401145738,1767975044684,-472.2,0.00016455,2]
[401145739,1767975044694,-7465.0,0.00016549,2]
[401145740,1767975044705,-500.0,0.00016549,2]
[401145741,1767975044714,-151.0,0.0001656,2]
[401145742,1767975044724,-151.0,0.0001656,2]
[401145743,1767975044735,-1500.0,0.0001656,2]
[401145744,1767975044745,-2540.0800825,0.00016626,2]
[401145745,1767975044755,-7465.0,0.00016686,2]
[401145746,1767975044764,-500.0,0.00016686,2]
[401145747,1767975044774,-7465.0,0.00016823,2]
[401145748,1767975044783,-500.0,0.00016823,2]
[401145749,1767975044792,-151.71242224,0.00016823,2]
[401145750,1767975044802,-2540.0800825,0.00016874,2]
[401145751,1767975044812,-1366.0,0.00016936,2]
[401145752,1767975044822,-628.0,0.00016936,2]
[401145753,1767975044831,-2146.0,0.00016936,2]
[401145754,1767975044841,-714.0,0.00016936,2]
[401145755,1767975044851,-196.35,0.00016936,2]
[401145756,1767975044861,-417.0,0.00016936,2]
[401145757,1767975044871,-417.0,0.00016936,2]
[401145758,1767975044881,-7465.0,0.0001696,2]
[401145759,1767975044891,-151.25281158,0.0001696,2]
[401145760,1767975044901,-154.82317524,0.0001696,2]
[401145761,1767975044911,-679.056312,0.0001696,2]
[401145762,1767975044920,-679.056312,0.0001696,2]
[401145763,1767975044929,-679.056312,0.0001696,2]
[401145764,1767975044938,-679.056312,0.0001696,2]
[401145765,1767975044948,-1093.87713372,0.00016986,2]
[401145766,1767975044957,-3000.0,0.00017,2]
[401145767,1767975044966,-151.0,0.00017,2]
[401145768,1767975044975,-1496.75,0.00017,2]
[401145769,1767975044984,-3000.0,0.0001701,2]
[401145770,1767975044995,-3000.0,0.0001702,2]
[401145771,1767975045004,-3000.0,0.0001703,2]
[401145772,1767975045013,-3119.483659,0.0001704,2]
[401145773,1767975045023,-7465.0,0.00017097,2]
[401145774,1767975045032,-3927.12796227,0.00017097,2]
[401145775,1767975045041,-156.8595936,0.00017097,2]
[401145776,1767975045051,-2540.0800825,0.00017134,2]
[401145777,1767975045060,-200.0,0.00017179,2]
[401145778,1767975045070,-37185.9837877,0.0001718,2]
[401145779,1767975045079,-478.75725327,0.00017206,2]
[401145780,1767975045088,-322.6107,0.00017206,2]
[401145781,1767975045098,-30000.0,0.00017206,2]
[401145782,1767975045106,-151.0,0.00017206,2]
[401145783,1767975045115,-2312.83697232,0.00017206,2]
[401145784,1767975045125,-472.2,0.00017214,2]
[401145785,1767975045137,-7465.0,0.00017234,2]
[401145786,1767975045146,-151.0,0.00017266,2]
[401145787,1767975045156,-151.0,0.000173,2]
[401145788,1767975045165,-1000.0,0.00017365,2]
[401145789,1767975045177,-7465.0,0.00017371,2]
[401145790,1767975045187,-151.0,0.00017371,2]
[401145791,1767975045198,-5000.0,0.00017412,2]
[401145792,1767975045207,-2540.0800825,0.00017472,2]
[401145793,1767975045217,-7465.0,0.00017508,2]
[401145794,1767975045227,-524.847,0.00017542,2]
[401145795,1767975045237,-2540.0800825,0.00017551,2]
[401145796,1767975045247,-4877.05303816,0.00017558,2]
[401145797,1767975045256,-7465.0,0.00017645,2]
[401145798,1767975045266,-1000.0,0.00017661,7]
[401145799,1767975045275,-496.47127164,0.00017754,2]
[401145800,1767975045285,-334.5472959,0.00017754,2]
[401145801,1767975045294,-30423.103543,0.00017754,2]
[401145802,1767975045304,-2398.4119403,0.00017754,2]
[401145803,1767975045314,-679.056312,0.00017754,2]
[401145804,1767975045323,-679.056312,0.00017754,2]
[401145805,1767975045333,-679.056312,0.00017754,2]
[401145806,1767975045342,-679.056312,0.00017754,2]
[401145807,1767975045352,-7465.0,0.00017782,2]
[401145808,1767975045362,-151.0,0.000178,2]
[401145809,1767975045371,-2540.0800825,0.00017846,2]
[401145810,1767975045381,-7465.0,0.00017919,2]
[401145811,1767975045390,-472.2,0.00017972,2]
[401145812,1767975045400,-654.53799371,0.00017973,8]
[401145813,1767975045410,-7465.0,0.00018056,2]
[401145814,1767975045419,-2540.0800825,0.00018134,2]
[401145815,1767975045429,-7465.0,0.00018193,2]
[401145816,1767975045438,-443.89323264,0.00018195,2]
[401145817,1767975045447,-514.84070869,0.00018302,2]
[401145818,1767975045457,-288.9877782,0.00018302,2]
[401145819,1767975045467,-2487.15318209,0.00018302,2]
[401145820,1767975045477,-589.0,0.00018307,2]
[401145821,1767975045486,-2540.0800825,0.00018359,2]
[401145822,1767975045495,-589.0,0.00018361,2]
[401145823,1767975045504,-777.0,0.000184,2]
[401145824,1767975045513,-589.0,0.00018403,2]
[401145825,1767975045524,-589.0,0.00018441,2]
[401145826,1767975045533,-340.56,0.0001845,2]
[401145827,1767975045543,-151.0,0.000185,2]
[401145828,1767975045552,-589.0,0.00018505,2]
[401145829,1767975045562,-600.0,0.00018533,2]
[401145830,1767975045571,-200.58193509,0.00018615,2]
[401145831,1767975045581,-166.0,0.00018615,2]
[401145832,1767975045591,-347.0,0.00018615,2]
[401145833,1767975045600,-347.0,0.00018615,2]
[401145834,1767975045610,-336.0,0.00018615,2]
[401145835,1767975045620,-347.0,0.00018615,2]
[401145836,1767975045629,-336.0,0.00018615,2]
[401145837,1767975045639,-347.0,0.00018615,2]
[401145838,1767975045648,-336.0,0.00018615,2]
[401145839,1767975045658,-336.0,0.00018615,2]
[401145840,1767975045667,-347.0,0.00018615,2]
[401145841,1767975045677,-336.0,0.00018615,2]
[401145842,1767975045687,-347.0,0.00018615,2]
[401145843,1767975045696,-336.0,0.00018615,2]
[401145844,1767975045706,-151.0,0.00018615,2]
[401145845,1767975045716,-336.0,0.00018615,2]
[401145846,1767975045727,-347.0,0.00018615,2]
[401145847,1767975045737,-151.0,0.00018615,2]
[401145848,1767975045748,-336.0,0.00018615,2]
[401145849,1767975045758,-336.0,0.00018615,2]
[401145850,1767975045767,-336.0,0.00018615,2]
[401145851,1767975045777,-336.0,0.00018615,2]
[401145852,1767975045787,-151.0,0.00018615,2]
[401145853,1767975045796,-151.0,0.00018615,2]
[401145854,1767975045806,-151.0,0.00018615,2]
[401145855,1767975045816,-151.0,0.00018615,2]
[401145856,1767975045826,-302.0,0.00018615,2]
[401145857,1767975045835,-246.13629979,0.00018627,2]
[401145858,1767975045844,-673.35687956,0.00018627,2]
[401145859,1767975045854,-2693.42751824,0.00018627,2]
[401145860,1767975045864,-589.0,0.00018646,2]
[401145861,1767975045874,-600.0,0.00018726,2]
[401145862,1767975045884,-589.0,0.0001873,2]
[401145863,1767975045893,-472.2,0.00018731,2]
[401145864,1767975045903,-1000.0,0.00018757,7]
[401145865,1767975045912,-151.0,0.00018777,2]
[401145866,1767975045922,-2540.0800825,0.00018841,2]
[401145867,1767975045932,-654.53799371,0.00018848,9]
[401145868,1767975045941,-533.88981491,0.0001885,2]
[401145869,1767975045950,-2579.17784983,0.0001885,2]
[401145870,1767975045960,-5000.0,0.00018863,2]
[401145871,1767975045969,-303.10001603,0.000189,2]
[401145872,1767975045979,-600.0,0.00018919,2]
[401145874,1767975045989,-9153.34793622,0.00018919,2]
[401145876,1767975045999,-8429.7539977,0.00018923,2]
[401145877,1767975046008,-5436.8226318,0.00018923,2]
[401145880,1767975046018,-1477.1015963,0.00018923,2]
[401145881,1767975046028,-521.3896634,0.00018923,2]
[401145882,1767975046038,-153.7749878,0.00018923,2]
[401145883,1767975046047,-6060.21191603,0.00019037,2]
[401145884,1767975046057,-303.10001603,0.00019089,2]
[401145885,1767975046067,-1000.0,0.00019101,2]
[401145886,1767975046077,-244.0,0.00019101,2]
[401145887,1767975046086,-600.0,0.00019112,2]
[401145888,1767975046097,-589.0,0.0001912,2]
[401145889,1767975046107,-2540.0800843,0.00019174,2]
[401145890,1767975046117,-5000.0,0.00019178,2]
[401145891,1767975046129,-5000.0,0.00019178,2]
[401145892,1767975046140,-236.83892514,0.00019178,2]
[401145893,1767975046150,-151.0,0.00019178,2]
[401145894,1767975046160,-151.0,0.00019178,2]
[401145895,1767975046171,-151.000003,0.00019178,2]
[401145896,1767975046180,-221.941164,0.00019178,2]
[401145897,1767975046190,-221.941164,0.00019178,2]
[401145898,1767975046199,-221.941164,0.00019178,2]
[401145899,1767975046210,-221.941164,0.00019178,2]
[401145900,1767975046219,-221.941164,0.00019178,2]
[401145901,1767975046229,-221.941164,0.00019178,2]
[401145902,1767975046239,-221.941164,0.00019178,2]
[401145903,1767975046249,-221.941164,0.00019178,2]
[401145904,1767975046259,-221.941164,0.00019178,2]
[401145905,1767975046269,-221.941164,0.00019178,2]
[401145906,1767975046278,-221.941164,0.00019178,2]
[401145907,1767975046288,-221.941164,0.00019178,2]
[401145908,1767975046298,-589.0,0.00019192,2]
[401145909,1767975046308,-1789.16,0.000192,2]
[401145910,1767975046318,-164.68,0.000192,2]
[401145911,1767975046328,-163.14,0.000192,2]
[401145912,1767975046337,-167.68,0.000192,2]
[401145913,1767975046348,-181.573329,0.00019215,2]
[401145914,1767975046357,-679.056312,0.00019215,2]
[401145915,1767975046367,-679.056312,0.00019215,2]
[401145916,1767975046377,-679.056312,0.00019215,2]
[401145917,1767975046386,-679.056302,0.00019215,2]
[401145918,1767975046396,-180.02880461,0.00019215,2]
[401145919,1767975046406,-109736.2029949,0.00019217,2]
[401145920,1767975046416,-221.941164,0.00019217,2]
[401145921,1767975046426,-221.941164,0.00019217,2]
[401145922,1767975046436,-221.941164,0.00019217,2]
[401145923,1767975046447,-221.941164,0.00019217,2]
[401145924,1767975046457,-4877.05303816,0.00019264,2]
[401145925,1767975046466,-303.10001603,0.00019278,2]
[401145926,1767975046476,-20774.33,0.000193,2]
[401145927,1767975046486,-151.0,0.000193,2]
[401145928,1767975046497,-1002.21762886,0.000193,2]
[401145929,1767975046508,-1002.21762886,0.000193,2]
[401145930,1767975046518,-454505.05196137,0.00019305,2]
[401145931,1767975046534,-3185.43979731,0.00019305,2]
[401145932,1767975046727,-7465.0,0.0001833,2]
[401145933,1767975046737,-38145.40000001,0.00019305,2]
[401145942,1767975047088,-2041.08499773,0.00018467,2]
[401145943,1767975047103,-318.55232866,0.00018467,2]
[401145944,1767975047136,-5105.36267361,0.00018467,2]
[401145945,1767975047146,-7465.0,0.00018604,2]
[401145946,1767975047156,-2703.37192921,0.00019305,2]
[401145947,1767975047168,-18288.23898243,0.00019305,2]
[401145948,1767975047185,-2141.85924301,0.00019305,2]
[401145949,1767975047197,-660.112334,0.00019305,2]
[401145958,1767975157143,630.36,0.00030136,120]
[401145959,1767975172627,164.05205218,0.00030136,120]
[401145960,1767975177650,400.0,0.00030137,120]
[401145961,1767975205782,500.0,0.00030136,120]
[401145964,1767975217529,500.0,0.00030136,120]
[401145965,1767975217794,500.0,0.00030136,120]
[401145966,1767975218036,500.0,0.00030136,120]
[401145967,1767975218555,500.0,0.00030136,120]
[401145968,1767975218732,500.0,0.00030136,120]
[401145969,1767975218993,503.09512756,0.00030136,120]
[401145970,1767975225719,540.6238679,0.00030136,120]
[401145971,1767975226822,500.0,0.00030136,120]
[401145972,1767975237416,173.39816714,0.00030136,120]
[401145973,1767975240355,500.0,0.00030136,120]
[401145974,1767975245601,504.81432534,0.00030136,120]
[401145975,1767975247867,517.41291745,0.00030136,120]
[401145976,1767975255186,498.63069364,0.00030136,120]
[401145977,1767975259645,500.0,0.00030136,120]
[401145978,1767975259878,500.0,0.00030136,120]
[401145979,1767975260120,500.0,0.00030136,120]
[401145980,1767975260369,500.0,0.00030136,120]
[401145981,1767975260617,500.0,0.00030136,120]
[401145982,1767975260850,349.86,0.00030136,120]
[401145983,1767975276325,533.42718592,0.00030136,120]
[401145984,1767975280333,500.0,0.00030136,120]
[401145985,1767975282373,533.92491966,0.00030136,120]
[401145986,1767975288135,527.0254124,0.00030136,120]
[401145987,1767975289932,506.11527715,0.00030136,120]
[401145988,1767975291961,500.0,0.00030136,120]
[401145989,1767975293783,513.66745306,0.00030136,120]
[401145990,1767975304912,507.69314529,0.00030136,120]
[401145991,1767975336041,508.07033705,0.00030136,120]
[401145992,1767975337968,512.13017224,0.00030136,120]
[401145993,1767975350917,155.0,5e-05,2]
[401145994,1767975352867,511.5672298,0.00030136,120]
[401145995,1767975398393,500.0,0.00030136,120]
[401145996,1767975398635,502.95015706,0.00030136,120]
[401145997,1767975437530,500.0,0.00030136,120]
[401145998,1767975456807,462.09772556,0.00030136,120]
[401145999,1767975461712,503.97223004,0.00030136,120]
[401146000,1767975518116,503.9809871,0.00030136,120]
[401146001,1767975518584,518.43749527,0.00030136,120]
[401146002,1767975530827,205.42211511,0.00030136,120]
[401146003,1767975538108,504.48597,0.00030136,120]
[401146004,1767975541504,513.67286888,0.00030136,120]
[401146005,1767975548660,336.06170923,0.00030136,120]
[401146006,1767975559869,633.2804934,0.00030136,120]
[401146007,1767975567241,467.03725761,0.00030136,120]
[401146008,1767975568232,502.8014743,0.00030136,120]
[401146009,1767975578161,502.80188977,0.00030136,120]
[401146010,1767975579910,452.17504137,0.00030136,120]
[401146011,1767975583690,513.97821622,0.00030136,120]
[401146012,1767975588424,504.75889312,0.00030136,120]
[401146013,1767975591905,505.012967,0.00030136,120]
[401146014,1767975597372,507.35,0.00030136,120]
[401146015,1767975600434,502.58590211,0.00030136,120]
[401146016,1767975603656,511.08658175,0.00030136,120]
[401146017,1767975607319,417.12597908,0.00030136,120]
[401146018,1767975613375,250.0,0.0003,120]
[401146019,1767975614225,604.86701774,0.00030136,120]
[401146020,1767975614835,507.23763651,0.00030136,120]
[401146021,1767975616602,501.80676134,0.00030136,120]
[401146022,1767975617049,506.43080354,0.00030136,120]
[401146023,1767975618854,504.93556908,0.00030136,120]
[401146024,1767975620660,505.09629505,0.00030136,120]
[401146025,1767975624188,502.44911028,0.00030136,120]
[401146026,1767975626398,500.0,0.00030136,120]
[401146027,1767975630302,515.7007482,0.00030136,120]
[401146028,1767975632026,510.90881247,0.00030136,120]
[401146029,1767975634055,507.25548026,0.00030136,120]
[401146030,1767975637664,503.51719693,0.00030136,120]
[401146031,1767975639403,355.20350796,0.00030136,120]
[401146032,1767975642341,500.0,0.00030136,120]
[401146033,1767975644045,376.88582425,0.00030136,120]
[401146034,1767975646673,503.22369739,0.00030136,120]
[401146035,1767975647338,503.52363034,0.00030136,120]
[401146036,1767975648538,277.39797588,0.00030136,120]
[401146037,1767975650304,493.09591134,0.00030136,120]
[401146038,1767975653377,502.32291338,0.00030136,120]
[401146039,1767975658194,502.87055294,0.00030136,120]
[401146040,1767975660191,509.72393565,0.00030136,120]
[401146041,1767975662317,541.51428512,0.00030136,120]
[401146042,1767975664171,503.6556189,0.00030136,120]
[401146043,1767975666091,220.13077373,0.00030136,120]
[401146044,1767975666931,477.71222825,0.00030136,120]
[401146045,1767975668896,502.15898394,0.00030136,120]
[401146046,1767975669134,277.55173585,0.00030136,120]
[401146047,1767975674004,501.35878117,0.00030136,120]
[401146048,1767975677107,508.59645114,0.00030136,120]
[401146049,1767975677580,500.0,0.00030136,120]
[401146050,1767975679418,502.92029331,0.00030136,120]
[401146051,1767975682538,2433.0,0.00030127,120]
[401146052,1767975739666,500.0,0.00030136,120]
[401146053,1767975742325,2433.0,0.00030127,120]
[401146054,1767975743278,2433.0,0.00030127,120]
[401146055,1767975744211,2433.0,0.00030127,120]
[401146056,1767975745175,345.47987431,0.00030136,120]
[401146057,1767975745237,2433.0,0.00030127,120]
[401146058,1767975753964,500.0,0.00030136,120]
[401146060,1767976039678,500.0,9.037e-05,2]
[401146085,1767976232192,-290.93479985,0.00011021,2]
[401146086,1767976232202,-1399.46930979,0.00012592,2]
[401146087,1767976232227,-144811.44584663,0.00012592,2]
[401146088,1767976232236,-300.0,0.00012785,2]
[401146089,1767976232245,-300.0,0.00012785,2]
[401146090,1767976232255,-300.0,0.00012785,2]
[401146091,1767976232264,-1200.0,0.00012785,2]
[401146092,1767976232274,-303.512707,0.00012786,2]
[401146093,1767976232283,-500.0,0.00012786,2]
[401146094,1767976232293,-500.0,0.00012786,2]
[401146095,1767976232302,-500.0,0.00012786,2]
[401146096,1767976232311,-500.0,0.00012786,2]
[401146097,1767976232321,-500.0,0.00012786,2]
[401146098,1767976232330,-500.0,0.00012786,2]
[401146099,1767976232340,-500.0,0.00012786,2]
[401146100,1767976232349,-500.0,0.00012786,2]
[401146101,1767976232357,-480.62684648,0.00012786,2]
[401146102,1767976232367,-500.0,0.00012786,2]
[401146103,1767976232376,-527.27938631,0.00012786,2]
[401146105,1767976232385,-500.0,0.00012786,2]
[401146107,1767976232394,-177.43449352,0.00012786,2]
[401146155,1767976238581,-322.56550648,0.00012786,2]
[401146157,1767976238591,-500.0,0.00012786,2]
[401146158,1767976238601,-500.0,0.00012786,2]
[401146159,1767976238612,-500.0,0.00012786,2]
[401146160,1767976238622,-500.0,0.00012786,2]
[401146162,1767976238632,-500.0,0.00012786,2]
[401146164,1767976238641,-500.0,0.00012786,2]
[401146166,1767976238652,-500.0,0.00012786,2]
[401146168,1767976238662,-500.0,0.00012786,2]
[401146171,1767976238671,-500.0,0.00012786,2]
[401146173,1767976238681,-500.0,0.00012786,2]
[401146176,1767976238691,-500.0,0.00012786,2]
[401146178,1767976238701,-500.0,0.00012786,2]
[401146180,1767976238711,-328.28147565,0.00012786,2]
[401146182,1767976238721,-500.0,0.00012786,2]
[401146184,1767976238731,-500.0,0.00012786,2]
[401146186,1767976238741,-500.0,0.00012786,2]
[401146188,1767976238752,-250.62347178,0.00012786,2]
[401146190,1767976238761,-500.0,0.00012786,2]
[401146192,1767976238771,-500.0,0.00012786,2]
[401146194,1767976238782,-500.0,0.00012786,2]
[401146196,1767976238792,-500.0,0.00012786,2]
[401146198,1767976238802,-500.0,0.00012786,2]
[401146200,1767976238813,-500.0,0.00012786,2]
[401146202,1767976238823,-500.0,0.00012786,2]
[401146204,1767976238835,-500.0,0.00012786,2]
[401146206,1767976238845,-500.0,0.00012786,2]
[401146208,1767976238855,-500.0,0.00012786,2]
[401146210,1767976238865,-500.0,0.00012786,2]
[401146212,1767976238876,-500.0,0.00012786,2]
[401146214,1767976238888,-500.0,0.00012786,2]
[401146216,1767976238898,-500.0,0.00012786,2]
[401146218,1767976238908,-500.0,0.00012786,2]
[401146220,1767976238919,-500.0,0.00012786,2]
[401146222,1767976238930,-500.0,0.00012786,2]
[401146224,1767976238940,-500.0,0.00012786,2]
[401146226,1767976238950,-500.0,0.00012786,2]
[401146228,1767976238960,-500.0,0.00012786,2]
[401146230,1767976238970,-500.0,0.00012786,2]
[401146232,1767976238981,-500.0,0.00012786,2]
[401146234,1767976238991,-500.0,0.00012786,2]
[401146236,1767976239001,-500.0,0.00012786,2]
[401146238,1767976239011,-500.0,0.00012786,2]
[401146240,1767976239022,-500.0,0.00012786,2]
[401146242,1767976239032,-500.0,0.00012786,2]
[401146244,1767976239042,-500.0,0.00012786,2]
[401146246,1767976239052,-276.98472358,0.00012786,2]
[401146248,1767976239061,-500.0,0.00012786,2]
[401146250,1767976239071,-500.0,0.00012786,2]
[401146252,1767976239084,-500.0,0.00012786,2]
[401146254,1767976239095,-500.0,0.00012786,2]
[401146255,1767976239105,-500.0,0.00012786,2]
[401146257,1767976239116,-500.0,0.00012786,2]
[401146260,1767976239126,-500.0,0.00012786,2]
[401146261,1767976239137,-500.0,0.00012786,2]
[401146263,1767976239147,-500.0,0.00012786,2]
[401146265,1767976239157,-500.0,0.00012786,2]
[401146267,1767976239167,-500.0,0.00012786,2]
[401146269,1767976239178,-500.0,0.00012786,2]
[401146271,1767976239189,-500.0,0.00012786,2]
[401146273,1767976239200,-500.0,0.00012786,2]